fUST/lending_fUST_20250125
["ID","MTS","AMOUNT","RATE_DAILY","PERIOD"]
[350318713,1737787841353,-500.0,0.00017891,2]
[350318714,1737787841363,-1372.29,0.00017891,2]
[350318715,1737787841373,-791.2,0.00017891,2]
[350318716,1737787841383,-500.0,0.00017891,2]
[350318717,1737787841392,-970.78,0.00017891,2]
[350318718,1737787841402,-500.0,0.00017891,2]
[350318719,1737787841412,-520.68,0.00017891,2]
[350318720,1737787841422,-575.01,0.00017891,2]
[350318721,1737787841431,-613.02,0.00017892,2]
[350318722,1737787841442,-500.0,0.00017892,2]
[350318723,1737787841452,-500.0,0.00017892,2]
[350318724,1737787841462,-500.0,0.00017892,2]
[350318725,1737787841471,-500.0,0.00017892,2]
[350318726,1737787841481,-749.04,0.00017892,2]
[350318727,1737787841492,-500.0,0.00017892,2]
[350318728,1737787841502,-500.0,0.00017892,2]
[350318729,1737787841512,-500.0,0.00017892,2]
[350318730,1737787841522,-500.0,0.00017892,2]
[350318731,1737787841533,-500.0,0.00017892,2]
[350318732,1737787841542,-500.0,0.00017892,2]
[350318733,1737787841552,-500.0,0.00017892,2]
[350318734,1737787841562,-500.0,0.00017892,2]
[350318735,1737787841573,-732.77,0.00017892,2]
[350318736,1737787841588,-500.0,0.00017892,2]
[350318737,1737787841597,-500.0,0.00017892,2]
[350318738,1737787841606,-447.54132228,0.00017892,2]
[350318739,1737787841616,-806.68,0.00017892,2]
[350318740,1737787841627,-615.31,0.00017892,2]
[350318741,1737787841637,-500.0,0.00017892,2]
[350318742,1737787841646,-500.0,0.00017892,2]
[350318743,1737787841659,-509.96,0.00017892,2]
[350318744,1737787841669,-500.0,0.00017892,2]
[350318745,1737787841678,-500.0,0.00017892,2]
[350318746,1737787841688,-500.0,0.00017892,2]
[350318747,1737787841698,-500.0,0.00017892,2]
[350318748,1737787841708,-500.0,0.00017892,2]
[350318749,1737787841717,-748.64,0.00017892,2]
[350318750,1737787841727,-500.0,0.00017892,2]
[350318751,1737787841737,-360.81873424,0.00017892,2]
[350318752,1737787841747,-705.46,0.00017892,2]
[350318753,1737787841757,-635.25,0.00017892,2]
[350318754,1737787841766,-500.0,0.00017892,2]
[350318755,1737787841777,-507.04747768,0.00017892,2]
[350318756,1737787841786,-500.0,0.00017892,2]
[350318757,1737787841796,-500.0,0.00017892,2]
[350318758,1737787841806,-500.0,0.00017892,2]
[350318759,1737787841815,-500.0,0.00017892,2]
[350318760,1737787841825,-1831.53,0.00017892,2]
[350318761,1737787841835,-500.0,0.00017892,2]
[350318762,1737787841947,-848.44,0.00017892,2]
[350318763,1737787841973,-500.0,0.00017892,2]
[350318764,1737787841983,-1805.76,0.00017892,2]
[350318765,1737787841993,-500.0,0.00017892,2]
[350318766,1737787842002,-505.08,0.00017892,2]
[350318767,1737787842012,-500.0,0.00017892,2]
[350318768,1737787842022,-500.0,0.00017892,2]
[350318769,1737787842032,-633.39,0.00017892,2]
[350318770,1737787842041,-500.0,0.00017892,2]
[350318771,1737787842052,-417.97285561,0.00017892,2]
[350318772,1737787842062,-1038.97,0.00017892,2]
[350318773,1737787842071,-800.55,0.00017892,2]
[350318774,1737787842081,-500.0,0.00017892,2]
[350318775,1737787842090,-500.0,0.00017892,2]
[350318776,1737787842099,-938.41,0.00017892,2]
[350318777,1737787842109,-500.0,0.00017892,2]
[350318778,1737787842119,-500.0,0.00017892,2]
[350318779,1737787842129,-500.0,0.00017892,2]
[350318780,1737787842138,-500.0,0.00017892,2]
[350318781,1737787842149,-543.78,0.00017892,2]
[350318782,1737787842159,-500.0,0.00017892,2]
[350318783,1737787842169,-1815.38,0.00017892,2]
[350318784,1737787842178,-1051.99,0.00017892,2]
[350318785,1737787842188,-500.0,0.00017892,2]
[350318786,1737787842197,-500.0,0.00017892,2]
[350318787,1737787842207,-500.0,0.00017892,2]
[350318788,1737787842217,-965.58,0.00017892,2]
[350318789,1737787842226,-975.35,0.00017892,2]
[350318790,1737787842236,-500.0,0.00017892,2]
[350318791,1737787842246,-500.0,0.00017892,2]
[350318792,1737787842255,-500.0,0.00017892,2]
[350318793,1737787842264,-500.0,0.00017892,2]
[350318794,1737787842274,-500.0,0.00017892,2]
[350318795,1737787842283,-680.66,0.00017892,2]
[350318796,1737787842292,-500.0,0.00017892,2]
[350318797,1737787842303,-500.0,0.00017892,2]
[350318798,1737787842313,-500.0,0.00017892,2]
[350318799,1737787842323,-151.0,0.00017892,2]
[350318800,1737787842333,-151.0,0.00017892,2]
[350318801,1737787842343,-201.3212941,0.00017892,2]
[350318802,1737787842504,-114.72896984,0.00017892,2]
[350318803,1737787842514,-2568.79,0.00017892,2]
[350318804,1737787842524,-290.996944,0.00017892,2]
[350318805,1737787842533,-437.90934241,0.00017892,2]
[350318806,1737787842551,-62.09065759,0.00017892,2]
[350318807,1737787842561,-670.28,0.00017892,2]
[350318808,1737787842570,-625.63,0.00017892,2]
[350318809,1737787842583,-500.0,0.00017892,2]
[350318810,1737787842593,-500.0,0.00017892,2]
[350318811,1737787842602,-595.89,0.00017892,2]
[350318812,1737787842612,-699.83,0.00017892,2]
[350318813,1737787842622,-500.0,0.00017892,2]
[350318814,1737787842631,-500.0,0.00017892,2]
[350318815,1737787842641,-283.98237,0.00017892,2]
[350318816,1737787842651,-500.0,0.00017894,2]
[350318817,1737787842660,-505.21276332,0.00017894,2]
[350318818,1737787842670,-500.0,0.00017894,2]
[350318819,1737787842679,-500.0,0.00017894,2]
[350318820,1737787842691,-500.0,0.00017894,2]
[350318821,1737787842701,-508.15800802,0.00017894,2]
[350318822,1737787842711,-8032.32420548,0.00017995,2]
[350318824,1737787842721,-3147.07092386,0.00018,2]
[350318826,1737787842733,-2347.49820123,0.00018,2]
[350318828,1737787842744,-1944.12840769,0.00018,2]
[350318829,1737787842754,-500.0,0.00018026,2]
[350318830,1737787842763,-415.30312004,0.00018027,2]
[350318832,1737787842773,-638.46,0.00018027,2]
[350318833,1737787842782,-500.0,0.00018027,2]
[350318835,1737787842792,-383.21407098,0.00018027,2]
[350318836,1737787842802,-2547.89,0.00018027,2]
[350318838,1737787842811,-6503.24,0.00018027,2]
[350318840,1737787842820,-500.0,0.00018027,2]
[350318841,1737787842829,-500.0,0.00018027,2]
[350318842,1737787842839,-500.0,0.00018027,2]
[350318844,1737787842848,-500.0,0.00018027,2]
[350318846,1737787842858,-445.58529064,0.00018027,2]
[350318847,1737787842870,-2486.71470936,0.00018027,2]
[350318848,1737787842879,-500.0,0.00018027,2]
[350318849,1737787842888,-500.0,0.00018027,2]
[350318850,1737787842898,-500.0,0.00018027,2]
[350318851,1737787842908,-2464.86,0.00018027,2]
[350318852,1737787842917,-500.0,0.00018027,2]
[350318853,1737787842928,-1600.49,0.00018027,2]
[350318854,1737787842937,-1459.91,0.00018027,2]
[350318855,1737787842947,-964.73,0.00018027,2]
[350318856,1737787842956,-1066.79,0.00018027,2]
[350318857,1737787842966,-500.0,0.00018027,2]
[350318859,1737787842977,-500.0,0.00018027,2]
[350318861,1737787842986,-290.77676249,0.00018027,2]
[350318873,1737787843329,-500.0,0.00017753,2]
[350318874,1737787843340,-500.0,0.0001789,2]
[350318875,1737787843350,-259.06626597,0.0001789,2]
[350318876,1737787843361,-209.22323751,0.00018027,2]
[350318877,1737787843371,-500.0,0.00018027,2]
[350318878,1737787843381,-500.0,0.00018027,2]
[350318880,1737787843391,-500.0,0.00018027,2]
[350318882,1737787843401,-500.0,0.00018027,2]
[350318884,1737787843410,-661.88,0.00018027,2]
[350318885,1737787843421,-1591.71,0.00018027,2]
[350318886,1737787843430,-1001.36,0.00018027,2]
[350318887,1737787843441,-3072.78,0.00018027,2]
[350318888,1737787843451,-3073.01,0.00018027,2]
[350318889,1737787843460,-1000.0,0.00018027,7]
[350318890,1737787843470,-500.0,0.00018027,2]
[350318891,1737787843480,-4204.43,0.00018027,2]
[350318892,1737787843490,-1257.63,0.00018027,2]
[350318893,1737787843500,-1488.89,0.00018027,2]
[350318894,1737787843509,-500.0,0.00018027,2]
[350318895,1737787843519,-500.0,0.00018027,2]
[350318897,1737787843528,-500.0,0.00018027,2]
[350318898,1737787843538,-500.0,0.00018027,2]
[350318899,1737787843547,-500.0,0.00018027,2]
[350318900,1737787843557,-500.0,0.00018027,2]
[350318901,1737787843567,-1408.82,0.00018027,2]
[350318902,1737787843579,-500.0,0.00018027,2]
[350318903,1737787843589,-614.16,0.00018027,2]
[350318904,1737787843599,-3105.46,0.00018027,2]
[350318905,1737787843608,-2020.43,0.00018027,2]
[350318906,1737787843618,-712.15,0.00018027,2]
[350318907,1737787843629,-559.59,0.00018027,2]
[350318908,1737787843639,-1613.92,0.00018027,2]
[350318909,1737787843648,-623.22,0.00018027,2]
[350318910,1737787843658,-500.0,0.00018028,2]
[350318911,1737787843668,-588.88,0.00018028,2]
[350318912,1737787843677,-500.0,0.00018028,2]
[350318913,1737787843687,-1022.61,0.00018028,2]
[350318914,1737787843697,-542.42,0.00018028,2]
[350318915,1737787843707,-663.4,0.00018028,2]
[350318916,1737787843716,-500.0,0.00018028,2]
[350318917,1737787843726,-1259.61,0.00018028,2]
[350318918,1737787843735,-792.15,0.00018028,2]
[350318919,1737787843744,-500.0,0.00018028,2]
[350318920,1737787843754,-888.66,0.00018028,2]
[350318921,1737787843763,-768.81,0.00018028,2]
[350318922,1737787843773,-500.0,0.00018028,2]
[350318923,1737787843782,-500.0,0.00018028,2]
[350318924,1737787843792,-839.02,0.00018028,2]
[350318925,1737787843802,-711.9,0.00018028,2]
[350318926,1737787843812,-500.0,0.00018028,2]
[350318927,1737787843822,-500.0,0.00018028,2]
[350318928,1737787843831,-500.0,0.00018028,2]
[350318929,1737787843841,-636.27,0.00018028,2]
[350318930,1737787843850,-579.68,0.00018028,2]
[350318931,1737787843860,-1192.01,0.00018028,2]
[350318932,1737787843869,-500.0,0.00018028,2]
[350318933,1737787843879,-500.0,0.00018028,2]
[350318934,1737787843889,-739.92,0.00018028,2]
[350318935,1737787843898,-500.0,0.00018028,2]
[350318936,1737787843908,-780.46,0.00018028,2]
[350318937,1737787843918,-500.0,0.00018028,2]
[350318938,1737787843927,-500.0,0.00018028,2]
[350318939,1737787843938,-500.0,0.00018028,2]
[350318940,1737787843947,-500.0,0.00018028,2]
[350318941,1737787843958,-1159.62,0.00018028,2]
[350318942,1737787843969,-689.32,0.00018028,2]
[350318943,1737787843979,-1659.36,0.00018028,2]
[350318944,1737787843989,-500.0,0.00018028,2]
[350318945,1737787843998,-500.0,0.00018028,2]
[350318946,1737787844009,-500.0,0.00018028,2]
[350318947,1737787844020,-500.0,0.00018028,2]
[350318948,1737787844029,-578.0,0.00018028,2]
[350318949,1737787844038,-500.0,0.00018028,2]
[350318950,1737787844048,-16899.84,0.00018028,2]
[350318951,1737787844058,-645.96,0.00018028,2]
[350318952,1737787844067,-500.0,0.00018028,2]
[350318953,1737787844076,-1423.31,0.00018028,2]
[350318954,1737787844230,-500.0,0.00018028,2]
[350318955,1737787844242,-6609.05799379,0.00018028,2]
[350318956,1737787844255,-6640.74200621,0.00018028,2]
[350318957,1737787844265,-791.94,0.00018028,2]
[350318958,1737787844275,-677.76,0.00018028,2]
[350318959,1737787844285,-500.0,0.00018028,2]
[350318960,1737787844294,-837.21,0.00018028,2]
[350318961,1737787844304,-500.0,0.00018028,2]
[350318962,1737787844314,-500.0,0.00018028,2]
[350318963,1737787844323,-505.11,0.00018028,2]
[350318964,1737787844333,-500.0,0.00018028,2]
[350318965,1737787844343,-2878.71,0.00018028,2]
[350318966,1737787844352,-816.48,0.00018028,2]
[350318967,1737787844362,-1177.72,0.00018028,2]
[350318968,1737787844372,-513.9336746,0.00018028,2]
[350318969,1737787844382,-500.0,0.00018028,2]
[350318970,1737787844391,-47109.38,0.00018028,2]
[350318971,1737787844401,-2478.67,0.00018028,2]
[350318972,1737787844410,-13638.69,0.00018028,2]
[350318973,1737787844419,-500.0,0.00018028,2]
[350318974,1737787844429,-1045.53,0.00018028,2]
[350318975,1737787844438,-606.49904092,0.00018028,2]
[350318976,1737787844447,-1372.29,0.00018028,2]
[350318977,1737787844457,-791.2,0.00018028,2]
[350318978,1737787844466,-500.0,0.00018028,2]
[350318979,1737787844476,-970.78,0.00018028,2]
[350318980,1737787844485,-500.0,0.00018028,2]
[350318981,1737787844495,-520.68,0.00018028,2]
[350318982,1737787844505,-575.01,0.00018028,2]
[350318983,1737787844515,-500.0,0.00018029,2]
[350318984,1737787844524,-500.0,0.00018029,2]
[350318985,1737787844533,-500.0,0.00018029,2]
[350318986,1737787844542,-434.76973342,0.00018029,2]
[350318987,1737787844551,-749.04,0.00018029,2]
[350318988,1737787844561,-500.0,0.00018029,2]
[350318989,1737787844571,-500.0,0.00018029,2]
[350318990,1737787844583,-500.0,0.00018029,2]
[350318991,1737787844592,-500.0,0.00018029,2]
[350318992,1737787844602,-500.0,0.00018029,2]
[350318993,1737787844611,-500.0,0.00018029,2]
[350318994,1737787844621,-500.0,0.00018029,2]
[350318995,1737787844630,-500.0,0.00018029,2]
[350318996,1737787844639,-732.77,0.00018029,2]
[350318997,1737787844648,-500.0,0.00018029,2]
[350318998,1737787844658,-500.0,0.00018029,2]
[350318999,1737787844667,-806.68,0.00018029,2]
[350319000,1737787844678,-615.31,0.00018029,2]
[350319001,1737787844688,-500.0,0.00018029,2]
[350319002,1737787844698,-500.0,0.00018029,2]
[350319003,1737787844708,-509.96,0.00018029,2]
[350319004,1737787844718,-500.0,0.00018029,2]
[350319005,1737787844728,-500.43759682,0.00018029,2]
[350319006,1737787844737,-500.0,0.00018029,2]
[350319007,1737787844747,-500.0,0.00018029,2]
[350319008,1737787844756,-748.64,0.00018029,2]
[350319009,1737787844766,-500.0,0.00018029,2]
[350319010,1737787844775,-705.46,0.00018029,2]
[350319011,1737787844785,-635.25,0.00018029,2]
[350319012,1737787844795,-500.0,0.00018029,2]
[350319013,1737787844805,-500.0,0.00018029,2]
[350319014,1737787844814,-500.0,0.00018029,2]
[350319015,1737787844824,-500.0,0.00018029,2]
[350319016,1737787844834,-500.0,0.00018029,2]
[350319017,1737787844843,-1831.53,0.00018029,2]
[350319018,1737787844853,-500.0,0.00018029,2]
[350319019,1737787844862,-848.44,0.00018029,2]
[350319020,1737787844871,-500.0,0.00018029,2]
[350319021,1737787844881,-1805.76,0.00018029,2]
[350319022,1737787844891,-337.50211777,0.00018029,2]
[350319023,1737787844900,-505.08,0.00018029,2]
[350319024,1737787844909,-500.0,0.00018029,2]
[350319025,1737787844919,-633.39,0.00018029,2]
[350319026,1737787844928,-500.0,0.00018029,2]
[350319027,1737787844938,-500.0,0.00018029,2]
[350319028,1737787844948,-1038.97,0.00018029,2]
[350319029,1737787844957,-800.55,0.00018029,2]
[350319030,1737787844967,-500.0,0.00018029,2]
[350319031,1737787844977,-522.29225124,0.00018029,2]
[350319032,1737787844987,-938.41,0.00018029,2]
[350319033,1737787844996,-500.0,0.00018029,2]
[350319034,1737787845006,-500.0,0.00018029,2]
[350319035,1737787845015,-500.0,0.00018029,2]
[350319036,1737787845024,-500.0,0.00018029,2]
[350319037,1737787845034,-543.78,0.00018029,2]
[350319038,1737787845044,-500.0,0.00018029,2]
[350319039,1737787845053,-1815.38,0.00018029,2]
[350319040,1737787845063,-1051.99,0.00018029,2]
[350319041,1737787845073,-500.0,0.00018029,2]
[350319042,1737787845082,-500.0,0.00018029,2]
[350319043,1737787845091,-500.0,0.00018029,2]
[350319044,1737787845101,-965.58,0.00018029,2]
[350319045,1737787845110,-975.35,0.00018029,2]
[350319046,1737787845120,-500.0,0.00018029,2]
[350319047,1737787845129,-500.0,0.00018029,2]
[350319048,1737787845139,-500.0,0.00018029,2]
[350319049,1737787845148,-623.87925673,0.00018029,2]
[350319050,1737787845158,-500.0,0.00018029,2]
[350319051,1737787845167,-680.66,0.00018029,2]
[350319052,1737787845177,-500.0,0.00018029,2]
[350319053,1737787845187,-500.0,0.00018029,2]
[350319054,1737787845197,-500.0,0.00018029,2]
[350319055,1737787845207,-2568.79,0.00018029,2]
[350319056,1737787845216,-500.0,0.00018029,2]
[350319057,1737787845226,-670.28,0.00018029,2]
[350319058,1737787845236,-625.63,0.00018029,2]
[350319059,1737787845245,-500.0,0.00018029,2]
[350319060,1737787845255,-500.0,0.00018029,2]
[350319061,1737787845264,-595.89,0.00018029,2]
[350319062,1737787845273,-699.83,0.00018029,2]
[350319063,1737787845283,-500.0,0.00018029,2]
[350319064,1737787845292,-500.0,0.00018029,2]
[350319065,1737787845303,-553.65904108,0.00018073,2]
[350319066,1737787845312,-502.60991759,0.00018073,2]
[350319067,1737787845327,-414.21832556,0.00018073,2]
[350319068,1737787845344,-500.0,0.00018073,2]
[350319069,1737787845358,-501.40761835,0.00018073,2]
[350319070,1737787845370,-500.0,0.00018073,2]
[350319071,1737787845384,-501.14044194,0.00018073,2]
[350319072,1737787845399,-500.0,0.00018073,2]
[350319073,1737787845413,-523.53733128,0.00018073,2]
[350319074,1737787845426,-500.0,0.00018073,2]
[350319075,1737787845441,-160.36661782,0.00018073,2]
[350319076,1737787845455,-500.0,0.00018073,2]
[350319077,1737787845470,-500.79697825,0.00018073,2]
[350319078,1737787845484,-368.47508919,0.00018073,2]
[350319079,1737787845496,-500.0,0.00018073,2]
[350319080,1737787845508,-503.3134436,0.00018073,2]
[350319081,1737787845521,-161.12644883,0.00018073,2]
[350319082,1737787845536,-500.0,0.00018073,2]
[350319083,1737787845549,-500.0,0.00018073,2]
[350319084,1737787845561,-500.0,0.00018073,2]
[350319085,1737787845572,-151.35352669,0.00018073,2]
[350319086,1737787845587,-503.34814156,0.00018073,2]
[350319087,1737787845601,-500.19948916,0.00018073,2]
[350319088,1737787845614,-2054.0,0.00018078,2]
[350319089,1737787845628,-536.0,0.00018078,2]
[350319090,1737787845642,-2304.0,0.00018078,2]
[350319091,1737787845656,-10388.81836921,0.000181,2]
[350319093,1737787845671,-10388.81836899,0.00018107,2]
[350319094,1737787845684,-510.8233574,0.00018123,2]
[350319095,1737787845697,-500.0,0.00018123,2]
[350319096,1737787845707,-500.0,0.00018163,2]
[350319097,1737787845720,-638.46,0.00018164,2]
[350319098,1737787845735,-500.0,0.00018164,2]
[350319099,1737787845748,-2547.89,0.00018164,2]
[350319100,1737787845759,-6503.24,0.00018164,2]
[350319101,1737787845770,-500.0,0.00018164,2]
[350319102,1737787845782,-500.0,0.00018164,2]
[350319103,1737787845795,-500.0,0.00018164,2]
[350319104,1737787845806,-500.0,0.00018164,2]
[350319105,1737787845820,-2932.3,0.00018164,2]
[350319106,1737787845831,-500.0,0.00018164,2]
[350319107,1737787845843,-500.0,0.00018164,2]
[350319108,1737787845856,-500.0,0.00018164,2]
[350319109,1737787845869,-2464.86,0.00018164,2]
[350319110,1737787845882,-500.0,0.00018164,2]
[350319111,1737787845897,-1600.49,0.00018164,2]
[350319112,1737787845909,-1459.91,0.00018164,2]
[350319113,1737787845921,-964.73,0.00018164,2]
[350319114,1737787845933,-233.72847054,0.00018164,2]
[350319115,1737787846177,-1273.95,0.00017753,2]
[350319116,1737787846189,-500.0,0.00017754,2]
[350319117,1737787846200,-833.06152946,0.00018164,2]
[350319118,1737787846212,-500.0,0.00018164,2]
[350319119,1737787846224,-292.85581147,0.00018164,2]
[350319120,1737787846235,-500.0,0.00018164,2]
[350319121,1737787846247,-500.0,0.00018164,2]
[350319122,1737787846258,-500.0,0.00018164,2]
[350319124,1737787846269,-500.0,0.00018164,2]
[350319125,1737787846281,-500.0,0.00018164,2]
[350319126,1737787846293,-661.88,0.00018164,2]
[350319127,1737787846304,-1591.71,0.00018164,2]
[350319128,1737787846316,-1001.36,0.00018164,2]
[350319129,1737787846327,-3051.1826664,0.00018164,2]
[350319130,1737787846341,-21.5973336,0.00018164,2]
[350319131,1737787846353,-565.0826664,0.00018164,2]
[350319132,1737787846395,-1273.95,0.0001789,2]
[350319135,1737787846408,-500.0,0.00017891,2]
[350319136,1737787846419,-2507.9273336,0.00018164,2]
[350319137,1737787846432,-1000.0,0.00018164,7]
[350319138,1737787846443,-500.0,0.00018164,2]
[350319139,1737787846453,-4204.43,0.00018164,2]
[350319140,1737787846463,-1257.63,0.00018164,2]
[350319141,1737787846472,-1488.89,0.00018164,2]
[350319142,1737787846482,-500.0,0.00018164,2]
[350319143,1737787846492,-500.0,0.00018164,2]
[350319144,1737787846501,-500.0,0.00018164,2]
[350319145,1737787846511,-500.0,0.00018164,2]
[350319146,1737787846521,-500.0,0.00018164,2]
[350319147,1737787846531,-500.0,0.00018164,2]
[350319148,1737787846540,-1408.82,0.00018164,2]
[350319149,1737787846550,-500.0,0.00018164,2]
[350319150,1737787846559,-614.16,0.00018164,2]
[350319151,1737787846569,-175.98044402,0.00018164,2]
[350319152,1737787846586,-587.96872001,0.00018164,2]
[350319153,1737787846957,-1273.95,0.00018027,2]
[350319154,1737787846968,-500.0,0.00018028,2]
[350319155,1737787846978,-152.0,0.00018081,2]
[350319156,1737787846987,-2341.51083597,0.00018164,2]
[350319157,1737787846996,-2020.43,0.00018164,2]
[350319158,1737787847005,-712.15,0.00018164,2]
[350319159,1737787847015,-559.59,0.00018164,2]
[350319160,1737787847024,-1613.92,0.00018164,2]
[350319161,1737787847033,-623.22,0.00018164,2]
[350319162,1737787847042,-1273.95,0.00018164,2]
[350319163,1737787847051,-500.0,0.00018165,2]
[350319164,1737787847060,-588.88,0.00018165,2]
[350319165,1737787847070,-500.0,0.00018165,2]
[350319166,1737787847079,-1022.61,0.00018165,2]
[350319167,1737787847088,-542.42,0.00018165,2]
[350319168,1737787847097,-663.4,0.00018165,2]
[350319169,1737787847106,-500.0,0.00018165,2]
[350319170,1737787847115,-1259.61,0.00018165,2]
[350319171,1737787847124,-792.15,0.00018165,2]
[350319172,1737787847133,-500.0,0.00018165,2]
[350319173,1737787847143,-888.66,0.00018165,2]
[350319174,1737787847151,-768.81,0.00018165,2]
[350319175,1737787847161,-500.0,0.00018165,2]
[350319176,1737787847171,-500.0,0.00018165,2]
[350319177,1737787847180,-839.02,0.00018165,2]
[350319178,1737787847190,-711.9,0.00018165,2]
[350319179,1737787847200,-500.0,0.00018165,2]
[350319180,1737787847209,-500.0,0.00018165,2]
[350319181,1737787847218,-500.0,0.00018165,2]
[350319182,1737787847230,-636.27,0.00018165,2]
[350319183,1737787847240,-579.68,0.00018165,2]
[350319184,1737787847250,-1192.01,0.00018165,2]
[350319185,1737787847260,-500.0,0.00018165,2]
[350319186,1737787847270,-500.0,0.00018165,2]
[350319187,1737787847281,-739.92,0.00018165,2]
[350319188,1737787847291,-500.0,0.00018165,2]
[350319189,1737787847300,-780.46,0.00018165,2]
[350319190,1737787847310,-500.0,0.00018165,2]
[350319191,1737787847321,-500.0,0.00018165,2]
[350319192,1737787847331,-500.0,0.00018165,2]
[350319193,1737787847341,-500.0,0.00018165,2]
[350319194,1737787847350,-1159.62,0.00018165,2]
[350319195,1737787847359,-689.32,0.00018165,2]
[350319196,1737787847369,-1659.36,0.00018165,2]
[350319197,1737787847379,-500.0,0.00018165,2]
[350319198,1737787847388,-500.0,0.00018165,2]
[350319199,1737787847397,-500.0,0.00018165,2]
[350319200,1737787847407,-500.0,0.00018165,2]
[350319201,1737787847416,-578.0,0.00018165,2]
[350319202,1737787847425,-500.0,0.00018165,2]
[350319203,1737787847435,-16899.84,0.00018165,2]
[350319204,1737787847445,-645.96,0.00018165,2]
[350319205,1737787847454,-500.0,0.00018165,2]
[350319206,1737787847463,-1423.31,0.00018165,2]
[350319207,1737787847473,-178.92909552,0.00018165,2]
[350319208,1737787847483,-13249.8,0.00018165,2]
[350319209,1737787847492,-791.94,0.00018165,2]
[350319210,1737787847502,-677.76,0.00018165,2]
[350319211,1737787847512,-500.0,0.00018165,2]
[350319212,1737787847522,-837.21,0.00018165,2]
[350319213,1737787847531,-500.0,0.00018165,2]
[350319214,1737787847540,-500.0,0.00018165,2]
[350319215,1737787847550,-505.11,0.00018165,2]
[350319216,1737787847559,-500.0,0.00018165,2]
[350319217,1737787847569,-2878.71,0.00018165,2]
[350319218,1737787847578,-816.48,0.00018165,2]
[350319219,1737787847591,-1177.72,0.00018165,2]
[350319220,1737787847600,-500.0,0.00018165,2]
[350319221,1737787847609,-47109.38,0.00018165,2]
[350319222,1737787847621,-2478.67,0.00018165,2]
[350319223,1737787847631,-13638.69,0.00018165,2]
[350319224,1737787847640,-500.0,0.00018165,2]
[350319225,1737787847651,-1045.53,0.00018165,2]
[350319226,1737787847662,-1372.29,0.00018165,2]
[350319227,1737787847672,-791.2,0.00018165,2]
[350319228,1737787847682,-500.0,0.00018165,2]
[350319229,1737787847693,-970.78,0.00018165,2]
[350319230,1737787847702,-500.0,0.00018165,2]
[350319231,1737787847712,-520.68,0.00018165,2]
[350319232,1737787847723,-575.01,0.00018165,2]
[350319233,1737787847732,-500.0,0.00018165,2]
[350319234,1737787847743,-500.0,0.00018166,2]
[350319235,1737787847752,-500.0,0.00018166,2]
[350319236,1737787847761,-474.19987769,0.00018166,2]
[350319237,1737787847771,-749.04,0.00018166,2]
[350319238,1737787847780,-500.0,0.00018166,2]
[350319239,1737787847790,-500.0,0.00018166,2]
[350319240,1737787847799,-500.0,0.00018166,2]
[350319241,1737787847808,-500.0,0.00018166,2]
[350319242,1737787847818,-500.0,0.00018166,2]